bitfinex/quotes_SOLUSD_20220129
["timestamp","ask_amount","ask_price","bid_price","bid_amount"]
[1643444436527,6.0,96.767,96.713,23.5293]
[1643444437147,0.25,96.766,96.714,0.25]
[1643444437352,0.25,96.766,96.713,23.5293]
[1643444437749,0.25,96.767,96.713,23.5293]
[1643444437949,0.25,96.767,96.674,1.43377649]
[1643444438150,2.95669142,96.766,96.661,22.9296]
[1643444438351,0.25,96.765,96.656,1.43377649]
[1643444438551,6.0,96.756,96.654,1.43377649]
[1643444438751,0.25,96.755,96.651,1.43377649]
[1643444438952,30.37,96.75,96.65,1.43377649]
[1643444439263,0.25,96.749,96.626,1.43377649]
[1643444439451,6.0,96.74,96.619,1.43377649]
[1643444439652,14.85,96.73,96.619,1.43377649]
[1643444439853,31.50987403,96.729,96.62,31.33831222]
[1643444440056,6.0,96.719,96.62,31.33831222]
[1643444440251,0.25,96.718,96.62,31.33831222]
[1643444440651,9.20669142,96.718,96.62,31.33831222]
[1643444440853,2.95669142,96.717,96.621,103.8]
[1643444441051,0.25,96.718,96.621,103.8]
[1643444441052,6.0,96.707,96.621,103.8]
[1643444441253,0.25,96.706,96.622,1.43377649]
[1643444441453,0.25,96.706,96.631,6.0]
[1643444441652,0.25,96.706,96.633,103.8]
[1643444441854,0.25,96.706,96.634,0.25]
[1643444442054,0.25,96.706,96.632,24.2016]
[1643444442454,0.25,96.717,96.642,6.0]
[1643444442853,0.25,96.717,96.643,6.25]
[1643444443256,6.0,96.718,96.643,6.25]
[1643444443457,6.0,96.719,96.644,24.8244]
[1643444443857,6.0,96.719,96.645,0.25]
[1643444444058,6.0,96.719,96.645,104.05]
[1643444444256,6.0,96.719,96.645,0.25]
[1643444445559,6.0,96.719,96.645,104.05]
[1643444445758,14.85,96.75,96.645,104.05]
[1643444445960,24.2901,96.749,96.645,104.05]
[1643444446359,24.2901,96.749,96.656,9.75979261]
[1643444446559,24.2901,96.749,96.667,103.8]
[1643444446761,24.2901,96.749,96.668,0.25]
[1643444447561,0.25,96.728,96.668,0.25]
[1643444449566,0.25,96.728,96.677,6.0]
[1643444449764,0.25,96.728,96.678,0.25]
[1643444449966,0.25,96.728,96.667,127.6227]
[1643444450266,0.25,96.728,96.677,6.0]
[1643444450667,6.0,96.719,96.678,0.25]
[1643444450868,0.25,96.718,96.667,23.8227]
[1643444453070,0.25,96.718,96.668,0.12413621]
[1643444456270,0.25,96.718,96.668,103.92413621]
[1643444456971,0.25,96.718,96.668,0.12413621]
[1643444459573,6.0,96.719,96.668,109.92413621]
[1643444459777,6.0,96.719,96.669,0.25]
[1643444460774,0.25,96.718,96.678,6.0]
[1643444460973,6.0,96.709,96.668,0.12413621]
[1643444461373,6.0,96.709,96.668,6.37413621]
[1643444461374,0.25,96.708,96.668,6.37413621]
[1643444461774,0.25,96.708,96.668,0.37413621]
[1643444461973,6.0,96.699,96.668,0.12413621]
[1643444462378,0.25,96.698,96.668,0.12413621]
[1643444463474,0.25,96.708,96.668,0.12413621]
[1643444464978,6.25,96.708,96.668,0.12413621]
[1643444466178,6.0,96.708,96.668,0.12413621]
[1643444469179,0.25,96.707,96.668,0.12413621]
[1643444472608,6.0,96.708,96.668,0.12413621]
[1643444472810,0.25,96.707,96.668,0.12413621]
[1643444476209,23.8126,96.718,96.669,2.31163377]
[1643444476411,1.43793618,96.754,96.67,0.25]
[1643444476612,1.43793618,96.765,96.668,0.12413621]
[1643444476810,1.43793618,96.754,96.668,0.12413621]
[1643444477012,1.43793618,96.753,96.668,0.12413621]
[1643444477209,42.02462532,96.753,96.668,0.12413621]
[1643444477411,1.43793618,96.752,96.668,0.12413621]
[1643444477709,24.9361,96.751,96.668,0.12413621]
[1643444477911,6.0,96.742,96.668,0.12413621]
[1643444478110,24.9361,96.751,96.668,0.12413621]
[1643444478111,6.0,96.741,96.668,0.12413621]
[1643444478311,6.25,96.741,96.668,0.12413621]
[1643444478911,24.6204,96.74,96.668,0.12413621]
[1643444479112,6.0,96.73,96.668,0.12413621]
[1643444479313,0.25,96.729,96.668,0.12413621]
[1643444479513,24.0859,96.729,96.668,0.12413621]
[1643444479915,30.51520603,96.718,96.668,0.12413621]
[1643444480112,6.0,96.708,96.668,0.12413621]
[1643444480313,0.25,96.707,96.668,0.12413621]
[1643444482915,0.25,96.717,96.668,0.12413621]
[1643444483315,0.25,96.717,96.669,2.31163377]
[1643444483716,0.25,96.717,96.67,24.3148]
[1643444484316,0.25,96.717,96.67,24.2819298]
[1643444487619,0.25,96.717,96.671,2.31163377]
[1643444490120,6.0,96.708,96.671,2.31163377]
[1643444490320,0.25,96.707,96.671,2.31163377]
[1643444491823,0.25,96.717,96.671,2.31163377]
[1643444492424,0.25,96.717,96.67,24.2819298]
[1643444492425,0.25,96.717,96.668,0.12413621]
[1643444492624,6.0,96.708,96.668,0.12413621]
[1643444492825,0.25,96.707,96.668,0.12413621]
[1643444494024,0.25,96.716,96.668,0.12413621]
[1643444494826,6.0,96.707,96.668,0.12413621]
[1643444495231,0.25,96.706,96.668,0.12413621]
[1643444495426,6.0,96.697,96.668,0.12413621]
[1643444495629,0.25,96.706,96.668,0.12413621]
[1643444496849,0.25,96.716,96.668,0.12413621]
[1643444497026,6.0,96.707,96.668,0.12413621]
[1643444497426,0.25,96.706,96.668,0.12413621]
[1643444499031,6.0,96.707,96.668,0.12413621]
[1643444499229,0.25,96.716,96.668,0.12413621]
[1643444499429,0.25,96.706,96.668,0.12413621]
[1643444499728,6.0,96.707,96.668,0.12413621]
[1643444499929,0.25,96.706,96.668,0.12413621]
[1643444503639,24.025,96.706,96.668,0.12413621]
[1643444505562,6.0,96.696,96.668,0.12413621]
[1643444505762,0.25,96.695,96.668,0.12413621]
[1643444512673,24.9457,96.695,96.668,0.12413621]
[1643444513171,6.0,96.685,96.668,0.12413621]
[1643444513373,40.58668914,96.683,96.668,0.12413621]
[1643444513572,6.0,96.673,96.668,0.12413621]
[1643444513776,0.25,96.672,96.668,0.12413621]
[1643444515575,24.9881,96.672,96.668,0.12413621]
[1643444516676,40.58668914,96.683,96.668,0.12413621]
[1643444516876,0.25,96.671,96.668,0.12413621]
[1643444517475,40.58668914,96.683,96.668,0.12413621]
[1643444517878,6.0,96.673,96.668,0.12413621]
[1643444518676,6.0,96.672,96.668,0.12413621]
[1643444518879,6.25,96.672,96.668,0.12413621]
[1643444522181,6.0,96.672,96.668,0.12413621]
[1643444523381,0.25,96.671,96.668,0.12413621]
[1643444525885,6.0,96.672,96.668,0.12413621]
[1643444526089,2.8587195,96.762,96.668,0.12413621]
[1643444526292,1.43793618,96.735,96.668,0.12413621]
[1643444526492,23.1494,96.767,96.669,2.31238039]
[1643444526493,1.43793618,96.758,96.669,2.31238039]
[1643444526887,1.43793618,96.765,96.679,6.0]
[1643444527088,41.92713653,96.747,96.683,6.0]
[1643444527289,41.92713653,96.747,96.684,0.25]
[1643444527489,6.0,96.737,96.684,2.56238039]
[1643444527689,6.0,96.737,96.684,0.25]
[1643444527889,6.0,96.737,96.685,2.31238039]
[1643444528088,0.25,96.736,96.685,2.31238039]
[1643444528288,0.25,96.736,96.681,24.191]
[1643444528490,0.25,96.736,96.691,6.0]
[1643444528889,41.92713653,96.747,96.692,0.25]
[1643444529091,41.92713653,96.747,96.692,6.25]
[1643444529491,41.92713653,96.747,96.693,2.31238039]
[1643444529989,41.92713653,96.747,96.703,6.0]
[1643444530392,0.25,96.746,96.704,0.25]
[1643444530612,0.25,96.746,96.706,6.0]
[1643444530814,0.25,96.746,96.707,0.25]
[1643444531415,6.0,96.756,96.707,0.25]
[1643444531818,0.25,96.755,96.707,0.25]
[1643444532018,35.66740921,96.755,96.704,6.25]
[1643444532617,35.66740921,96.755,96.705,6.0]
[1643444532818,35.66740921,96.755,96.706,0.25]
[1643444534136,35.66740921,96.755,96.706,0.25]
[1643444534537,35.66740921,96.755,96.696,0.25]
[1643444536137,0.25,96.755,96.696,0.25]
[1643444536337,0.25,96.755,96.697,2.31233349]
[1643444536538,0.25,96.755,96.707,6.0]
[1643444536940,0.25,96.755,96.708,0.25]
[1643444537141,44.5101654,96.765,96.708,0.25]
[1643444537340,44.5101654,96.765,96.708,2.56233349]
[1643444537540,44.5101654,96.765,96.709,2.31233349]
[1643444537740,44.5101654,96.765,96.71,32.44081758]
[1643444538343,0.25,96.764,96.71,32.44081758]
[1643444539958,0.25,96.764,96.687,2.31233349]
[1643444540158,0.25,96.764,96.668,0.12413621]
[1643444540352,44.5101654,96.765,96.668,0.12413621]
[1643444540353,6.0,96.755,96.668,0.12413621]
[1643444540953,6.0,96.753,96.668,0.12413621]
[1643444541160,6.0,96.753,96.669,2.30594439]
[1643444541557,6.0,96.755,96.669,2.30594439]
[1643444541983,0.25,96.754,96.669,2.30594439]
[1643444542382,0.25,96.754,96.67,0.25]
[1643444542580,24.4536,96.754,96.669,2.30594439]
[1643444542982,6.0,96.744,96.669,2.30594439]
[1643444543380,0.25,96.743,96.669,2.30594439]
[1643444545080,0.25,96.743,96.668,0.12413621]
[1643444547183,6.0,96.744,96.668,0.12413621]
[1643444547582,6.0,96.744,96.669,2.30594439]
[1643444548082,23.9591,96.743,96.669,2.30594439]
[1643444548486,26.59172977,96.732,96.669,2.30594439]
[1643444548783,0.25,96.731,96.669,2.30594439]
[1643444548987,6.0,96.722,96.669,2.30594439]
[1643444549403,0.25,96.721,96.668,0.12413621]
[1643444550191,1.43793618,96.774,96.669,2.30594439]
[1643444550393,1.43793618,96.776,96.681,1.43377649]
[1643444550591,23.1098,96.799,96.692,103.8]
[1643444550791,23.1098,96.799,96.693,24.2385]
[1643444550993,23.1098,96.799,96.703,103.8]
[1643444551192,41.48690541,96.798,96.71,14.85]
[1643444551691,6.0,96.788,96.71,14.85]
[1643444552293,0.25,96.787,96.711,0.25]
[1643444552491,0.25,96.787,96.71,14.85]
[1643444553792,0.25,96.787,96.711,0.25]
[1643444554594,0.25,96.787,96.71,14.85]
[1643444556296,0.25,96.787,96.711,31.01585511]
[1643444556495,6.25,96.787,96.711,31.01585511]
[1643444557698,0.25,96.787,96.711,31.01585511]
[1643444557897,6.0,96.777,96.711,31.01585511]
[1643444558098,24.1684,96.787,96.711,31.01585511]
[1643444558299,24.1684,96.787,96.712,0.25]
[1643444558499,6.0,96.777,96.712,0.25]
[1643444558899,0.25,96.776,96.712,0.25]
[1643444560202,0.25,96.776,96.711,0.25]
[1643444561105,0.25,96.776,96.711,41.34610626]
[1643444561305,0.25,96.787,96.711,41.34610626]
[1643444561505,6.25,96.787,96.711,41.34610626]
[1643444561702,6.0,96.787,96.711,41.34610626]
[1643444562003,41.48690541,96.798,96.721,6.0]
[1643444562201,41.48690541,96.798,96.722,23.246]
[1643444562402,41.48690541,96.798,96.723,103.8]
[1643444562606,41.48690541,96.798,96.734,103.8]
[1643444562803,41.48690541,96.798,96.735,0.25]
[1643444563005,41.48690541,96.798,96.744,6.0]
[1643444563403,41.48690541,96.798,96.745,0.25]
[1643444564004,41.48690541,96.798,96.745,6.25]
[1643444564606,41.48690541,96.798,96.745,0.25]
[1643444564810,41.48690541,96.798,96.736,0.25]
[1643444565006,41.48690541,96.798,96.745,6.0]
[1643444565406,41.48690541,96.798,96.746,0.25]
[1643444565606,41.48690541,96.798,96.746,6.25]
[1643444567305,0.25,96.797,96.746,0.25]
[1643444567707,0.25,96.797,96.736,0.25]
[1643444567908,41.48690541,96.798,96.736,0.25]
[1643444568134,0.25,96.797,96.745,6.0]
[1643444568305,0.25,96.797,96.746,0.25]
[1643444569706,0.25,96.797,96.736,0.25]
[1643444569907,0.25,96.797,96.747,2.29950329]
[1643444570307,0.25,96.797,96.748,0.25]
[1643444570512,0.25,96.797,96.735,22.5525]
[1643444570513,6.0,96.788,96.735,2.29950329]
[1643444570909,6.0,96.788,96.703,23.8194]
[1643444570910,0.25,96.787,96.703,23.8194]
[1643444571510,6.25,96.787,96.713,103.8]
[1643444571811,6.25,96.787,96.714,0.25]
[1643444572611,6.25,96.787,96.722,6.0]
[1643444572812,6.25,96.787,96.723,22.7505]
[1643444578344,41.48690541,96.798,96.733,6.0]
[1643444578740,22.6853,96.837,96.734,2.54950329]
[1643444578943,22.6853,96.837,96.735,103.8]
[1643444579141,6.0,96.827,96.745,6.0]
[1643444579342,6.0,96.827,96.746,0.25]
[1643444579542,6.0,96.827,96.746,23.4064]
[1643444579741,41.69021806,96.826,96.746,23.4064]
[1643444579942,41.69021806,96.826,96.756,109.8]
[1643444580144,41.69021806,96.826,96.746,23.4064]
[1643444580343,0.25,96.825,96.756,6.0]
[1643444580641,6.0,96.816,96.757,22.9884]
[1643444580845,6.0,96.816,96.757,23.2384]
[1643444582648,0.25,96.815,96.757,23.2384]
[1643444583144,6.0,96.816,96.757,23.2384]
[1643444583348,6.0,96.816,96.767,6.0]
[1643444583544,6.0,96.816,96.768,6.0]
[1643444583744,6.0,96.816,96.768,6.25]
[1643444584445,6.0,96.816,96.769,103.8]
[1643444584645,41.69021806,96.826,96.779,6.0]
[1643444584845,1.43793618,96.854,96.78,104.05]
[1643444585146,6.0,96.844,96.79,6.0]
[1643444585547,6.0,96.848,96.79,6.0]
[1643444585850,46.00080503,96.847,96.79,6.0]
[1643444586047,6.0,96.837,96.78,104.05]
[1643444586646,6.0,96.837,96.791,103.8]
[1643444586847,6.0,96.837,96.792,0.25]
[1643444587652,6.0,96.837,96.801,6.0]
[1643444587853,6.0,96.837,96.802,0.25]
[1643444588250,46.00080503,96.847,96.802,104.05]
[1643444588555,46.00080503,96.847,96.812,6.0]
[1643444588952,46.00080503,96.847,96.813,0.25]
[1643444590251,46.00080503,96.847,96.812,6.0]
[1643444590451,15.7069,96.89,96.813,103.8]
[1643444590750,15.7069,96.89,96.823,6.0]
[1643444590953,1.43793618,96.893,96.824,103.8]
[1643444591153,0.25,96.889,96.834,6.0]
[1643444591352,0.25,96.889,96.835,127.694]
[1643444591550,33.66426749,96.908,96.845,6.0]
[1643444591952,33.66426749,96.908,96.846,104.05]
[1643444592151,33.66426749,96.908,96.857,103.8]
[1643444592353,33.66426749,96.908,96.858,0.25]
[1643444592553,33.66426749,96.908,96.867,6.0]
[1643444593054,33.66426749,96.908,96.868,0.25]
[1643444594160,33.66426749,96.908,96.851,0.25]
[1643444594357,33.66426749,96.908,96.841,0.25]
[1643444594958,33.66426749,96.908,96.841,104.05]
[1643444595558,33.66426749,96.908,96.851,6.0]
[1643444595762,33.66426749,96.908,96.852,103.8]
[1643444595959,33.66426749,96.908,96.852,104.05]
[1643444596163,32.66426749,96.908,96.863,103.8]
[1643444596359,32.66426749,96.908,96.864,1.25199857]
[1643444596562,32.66426749,96.908,96.874,6.0]
[1643444596960,32.66426749,96.908,96.875,0.25]
[1643444597363,32.66426749,96.908,96.875,104.05]
[1643444598161,32.66426749,96.908,96.856,24.3431]
[1643444598361,32.66426749,96.908,96.857,0.25]
[1643444598564,32.66426749,96.908,96.817,16.9922493]
[1643444598866,6.0,96.898,96.79,38.5991]
[1643444599065,6.0,96.898,96.79,23.7491]
[1643444599265,6.0,96.898,96.791,40.48942169]
[1643444599462,0.25,96.897,96.791,40.48942169]
[1643444599667,0.25,96.897,96.792,24.6289]
[1643444599864,0.25,96.897,96.792,26.92833912]
[1643444600063,6.25,96.897,96.792,26.92833912]
[1643444600462,6.25,96.897,96.793,2.29943912]
[1643444600864,6.25,96.897,96.803,6.0]
[1643444601264,6.25,96.897,96.804,2.29943912]
[1643444602264,15.496,96.89,96.792,24.6289]
[1643444602666,6.0,96.88,96.793,0.25]
[1643444602866,0.25,96.879,96.793,2.54943912]
[1643444603166,37.68762768,96.879,96.794,2.29943912]
[1643444603364,37.68762768,96.879,96.795,2.45646076]
[1643444603565,6.0,96.869,96.805,6.0]
[1643444603864,0.25,96.868,96.806,0.25]
[1643444604069,0.25,96.868,96.806,2.54943912]
[1643444604265,0.25,96.868,96.807,2.29943912]
[1643444604864,0.25,96.868,96.808,0.25]
[1643444605265,6.0,96.869,96.809,2.29943912]
[1643444605465,6.0,96.869,96.81,33.08484022]
[1643444605667,37.43762768,96.879,96.819,6.0]
[1643444605865,37.43762768,96.879,96.82,6.25]
[1643444606066,37.43762768,96.879,96.83,6.0]
[1643444606265,37.43762768,96.879,96.831,9.26326461]
[1643444606666,37.43762768,96.879,96.832,2.29943912]
[1643444606865,37.43762768,96.879,96.833,0.25]
[1643444607164,49.0655,96.939,96.833,0.25]
[1643444607367,6.0,96.919,96.833,2.54943912]
[1643444607563,6.0,96.929,96.833,106.34943912]
[1643444608064,39.87874423,96.928,96.833,106.34943912]
[1643444608266,39.87874423,96.928,96.833,2.54943912]
[1643444608463,6.0,96.918,96.833,2.54943912]
[1643444608665,6.0,96.918,96.833,2.29943912]
[1643444609168,6.0,96.918,96.834,0.25]
[1643444609567,6.0,96.918,96.835,2.29943912]
[1643444609767,0.25,96.917,96.836,0.25]
[1643444610569,0.25,96.917,96.837,2.29943912]
[1643444610768,0.25,96.917,96.838,0.25]
[1643444611169,0.25,96.917,96.839,2.29943912]
[1643444611369,0.25,96.917,96.84,0.25]
[1643444611568,0.25,96.917,96.839,2.29943912]
[1643444612069,6.0,96.918,96.839,2.29943912]
[1643444612268,6.0,96.918,96.831,9.01326461]
[1643444612468,6.0,96.918,96.832,0.25]
[1643444612670,6.0,96.918,96.832,2.54943912]
[1643444612870,6.0,96.918,96.833,2.29943912]
[1643444613269,6.0,96.918,96.834,0.25]
[1643444613670,6.0,96.918,96.835,2.29943912]
[1643444613870,6.0,96.918,96.836,0.25]
[1643444614072,0.25,96.917,96.836,0.25]
[1643444614273,0.25,96.917,96.831,9.01326461]
[1643444614675,0.25,96.917,96.832,2.29943912]
[1643444614875,6.0,96.918,96.832,2.54943912]
[1643444615278,6.0,96.918,96.833,2.29943912]
[1643444615475,39.87874423,96.928,96.843,6.0]
[1643444615875,39.87874423,96.928,96.844,2.54943912]
[1643444616076,39.87874423,96.928,96.844,8.54943912]
[1643444616276,0.25,96.927,96.845,2.29943912]
[1643444616682,0.25,96.927,96.855,6.0]
[1643444616900,0.25,96.927,96.846,33.33484022]
[1643444616901,6.0,96.918,96.856,0.25]
[1643444617105,0.25,96.917,96.845,2.29943912]
[1643444617303,0.25,96.917,96.847,0.25]
[1643444618306,0.25,96.917,96.846,0.25]
[1643444618906,0.25,96.917,96.845,2.29943912]
[1643444619106,14.85,96.91,96.81,1.43377649]
[1643444619306,0.25,96.909,96.803,1.43377649]
[1643444619507,6.0,96.9,96.8,1.43377649]
[1643444619709,24.5719,96.899,96.799,1.43377649]
[1643444619906,30.22315094,96.898,96.8,33.14573306]
[1643444620108,6.0,96.889,96.8,31.71195657]
[1643444620307,6.25,96.888,96.801,0.25]
[1643444621209,6.25,96.888,96.8,0.25]
[1643444621410,6.25,96.888,96.799,1.68377649]
[1643444621617,6.25,96.888,96.802,2.29943912]
[1643444621810,6.25,96.888,96.803,0.25]
[1643444622010,6.25,96.888,96.803,31.40321399]
[1643444622213,6.25,96.888,96.812,6.0]
[1643444622410,6.25,96.888,96.813,6.25]
[1643444622610,6.25,96.888,96.813,2.54943912]
[1643444622809,6.25,96.888,96.814,2.29943912]
[1643444623210,6.25,96.888,96.815,0.25]
[1643444623611,6.25,96.888,96.816,2.29943912]
[1643444623811,6.25,96.888,96.817,0.25]
[1643444624211,6.25,96.888,96.818,2.29943912]
[1643444624409,6.25,96.888,96.819,0.25]
[1643444624612,6.25,96.888,96.801,1.43377649]
[1643444624613,70.0,96.887,96.798,1.43377649]
[1643444624814,70.0,96.887,96.773,15.83077153]
[1643444624815,0.25,96.886,96.785,1.43377649]
[1643444625111,6.0,96.877,96.795,6.0]
[1643444625312,0.25,96.876,96.795,6.0]
[1643444625512,33.27736404,96.875,96.798,6.0]
[1643444625913,6.0,96.865,96.8,6.0]
[1643444626314,0.25,96.864,96.801,0.25]
[1643444626913,33.27736404,96.875,96.801,0.25]
[1643444627118,1.43793618,96.905,96.81,14.85]
[1643444627319,0.25,96.904,96.811,23.3698]
[1643444627515,6.0,96.898,96.821,109.8]
[1643444627916,6.0,96.898,96.822,0.25]
[1643444628116,35.43062315,96.903,96.831,103.8]
[1643444628318,35.43062315,96.903,96.832,0.25]
[1643444628517,6.0,96.893,96.841,6.0]
[1643444628820,24.58153618,96.934,96.844,103.8]
[1643444628821,1.43793618,96.934,96.844,103.8]
[1643444629017,1.43793618,96.94,96.854,6.0]
[1643444629217,23.9142,96.947,96.855,23.9069]
[1643444629418,23.9142,96.947,96.855,24.1569]
[1643444629617,23.9142,96.947,96.865,6.0]
[1643444629820,42.9544138,96.946,96.866,11.10495892]
[1643444630017,6.0,96.936,96.876,6.0]
[1643444630417,6.0,96.936,96.877,0.25]
[1643444630618,0.25,96.935,96.877,0.25]
[1643444630818,0.25,96.935,96.877,6.0]
[1643444631018,0.25,96.935,96.866,10.85495892]
[1643444631419,0.25,96.935,96.867,2.29286361]
[1643444631618,0.25,96.935,96.866,10.85495892]
[1643444631818,0.25,96.935,96.876,6.0]
[1643444632222,0.25,96.935,96.877,2.29286361]
[1643444632524,0.25,96.935,96.876,6.0]
[1643444632525,0.25,96.935,96.887,6.0]
[1643444632721,0.25,96.935,96.877,0.25]
[1643444633122,0.25,96.935,96.877,6.0]
[1643444633323,0.25,96.935,96.867,23.0115]
[1643444633522,0.25,96.935,96.868,0.25]
[1643444633923,0.25,96.935,96.869,2.29286361]
[1643444634123,0.25,96.935,96.879,6.0]
[1643444634322,0.25,96.935,96.88,41.29029687]
[1643444634522,0.25,96.935,96.88,43.58316048]
[1643444634726,0.25,96.935,96.881,2.29286361]
[1643444635124,0.25,96.935,96.867,23.0115]
[1643444635524,0.25,96.935,96.877,6.0]
[1643444635727,0.25,96.935,96.868,2.29286361]
[1643444635924,0.25,96.935,96.869,44.3811549]
[1643444636325,0.25,96.935,96.846,2.29286361]
[1643444636523,0.25,96.935,96.846,25.14306361]
[1643444636728,0.25,96.935,96.851,0.25]
[1643444637324,0.25,96.935,96.856,6.0]
[1643444637528,6.25,96.935,96.861,6.0]
[1643444637927,6.25,96.935,96.862,0.25]
[1643444638127,6.25,96.935,96.851,0.25]
[1643444638327,6.0,96.925,96.863,2.29286361]
[1643444638525,6.0,96.925,96.856,6.0]
[1643444638727,0.25,96.924,96.856,6.0]
[1643444639026,25.09804225,96.924,96.853,39.20715218]
[1643444639226,24.84804225,96.924,96.853,39.20715218]
[1643444639430,24.84804225,96.924,96.854,2.54286361]
[1643444639629,24.84804225,96.924,96.864,6.0]
[1643444639830,24.84804225,96.924,96.865,0.25]
[1643444640030,24.84804225,96.924,96.865,8.54286361]
[1643444640230,24.84804225,96.924,96.865,2.54286361]
[1643444640429,24.84804225,96.924,96.866,2.29286361]
[1643444640628,0.25,96.923,96.866,2.29286361]
[1643444640829,0.25,96.923,96.867,0.25]
[1643444641230,0.25,96.923,96.868,2.29290982]
[1643444641428,24.84804225,96.924,96.869,0.25]
[1643444641828,24.84804225,96.924,96.87,2.29290982]
[1643444642227,24.84804225,96.924,96.871,0.25]
[1643444642428,24.84804225,96.924,96.88,6.0]
[1643444642628,24.84804225,96.924,96.872,2.29290982]
[1643444642830,24.84804225,96.924,96.873,0.25]
[1643444643231,24.84804225,96.924,96.874,2.29290982]
[1643444643428,24.84804225,96.924,96.875,0.25]
[1643444643832,24.84804225,96.924,96.876,2.29290982]
[1643444644232,24.84804225,96.924,96.877,0.25]
[1643444644430,0.25,96.923,96.877,0.25]
[1643444644633,0.25,96.923,96.877,2.30122571]
[1643444645133,6.0,96.914,96.877,2.30122571]
[1643444645930,6.0,96.914,96.878,0.25]
[1643444646133,0.25,96.913,96.857,2.30122571]
[1643444646331,0.25,96.913,96.858,0.25]
[1643444647836,0.25,96.913,96.848,0.25]
[1643444648639,0.25,96.913,96.847,0.25]
[1643444649435,24.84804225,96.924,96.847,38.17661682]
[1643444649637,24.84804225,96.924,96.857,6.0]
[1643444649836,0.25,96.923,96.858,24.8545]
[1643444650037,1.43793618,96.959,96.858,30.8545]
[1643444650238,14.85,96.96,96.858,30.8545]
[1643444650440,16.28793618,96.96,96.858,30.8545]
[1643444650659,16.28793618,96.96,96.864,6.0]
[1643444650862,43.33341036,96.936,96.865,6.72092713]
[1643444651262,0.25,96.935,96.865,6.72092713]
[1643444651665,6.0,96.926,96.865,6.72092713]
[1643444651863,0.25,96.925,96.865,6.72092713]
[1643444653264,0.25,96.925,96.865,0.25]
[1643444653865,0.25,96.925,96.859,0.25]
[1643444654064,6.25,96.925,96.859,0.25]
[1643444654364,0.25,96.924,96.86,32.94011862]
[1643444654564,0.25,96.924,96.861,103.8]
[1643444654764,0.25,96.924,96.861,104.05]
[1643444655466,0.25,96.924,96.861,0.25]
[1643444656568,0.25,96.924,96.87,6.0]
[1643444656768,0.25,96.924,96.858,24.6045]
[1643444656971,0.25,96.924,96.848,1.43377649]
[1643444657169,0.25,96.924,96.823,23.1594]
[1643444657170,0.25,96.924,96.835,1.43377649]
[1643444657367,0.25,96.924,96.838,1.43377649]
[1643444657568,6.0,96.92,96.838,1.43377649]
[1643444657768,6.0,96.92,96.837,1.43377649]
[1643444657967,47.30614569,96.919,96.837,1.43377649]
[1643444658169,47.30614569,96.919,96.838,0.25]
[1643444658368,6.0,96.909,96.838,0.25]
[1643444658568,6.0,96.909,96.838,22.9622]
[1643444658868,0.25,96.908,96.838,22.9622]
[1643444661475,0.25,96.908,96.838,0.25]
[1643444661872,0.25,96.908,96.823,23.2742]
[1643444662472,6.0,96.907,96.824,37.34467881]